[Event "*** Titled Tuesday Blitz"]
[Site "Chess.com"]
[Date "2020.05.19"]
[Round "10"]
[White "allvim"]
[Black "Gromes7"]
[Result "1/2-1/2"]
[WhiteElo "2230"]
[BlackElo "2015"]
[TimeControl "180+1"]
[EndTime "13:58:27 PDT"]
[Termination "Game drawn by repetition"]

1. e4 {[%clk 0:03:00.9]} 1... c5 {[%clk 0:02:59.6]} 2. Nf3 {[%clk 0:02:58.1]}
2... d6 {[%clk 0:02:59.2]} 3. d4 {[%clk 0:02:57.9]} 3... cxd4 {[%clk 0:02:57.2]}
4. Nxd4 {[%clk 0:02:58.8]} 4... Nf6 {[%clk 0:02:55]} 5. Nc3 {[%clk 0:02:59.1]}
5... Nc6 {[%clk 0:02:54.9]} 6. Nb3 {[%clk 0:02:34]} 6... e6 {[%clk 0:02:41.1]}
7. Be2 {[%clk 0:02:31.1]} 7... Be7 {[%clk 0:02:40.5]} 8. O-O {[%clk 0:02:30.5]}
8... O-O {[%clk 0:02:38.9]} 9. Be3 {[%clk 0:02:29.6]} 9... a6 {[%clk 0:02:32]}
10. f4 {[%clk 0:02:27.2]} 10... b5 {[%clk 0:02:20.4]} 11. a3 {[%clk 0:02:27.3]}
11... Qc7 {[%clk 0:02:18.6]} 12. Bf3 {[%clk 0:02:26.2]} 12... Bb7 {[%clk
0:02:13.6]} 13. Qe1 {[%clk 0:02:25.4]} 13... Rac8 {[%clk 0:02:01.4]} 14. Rd1
{[%clk 0:02:25.1]} 14... Rfe8 {[%clk 0:01:43.3]} 15. Qg3 {[%clk 0:02:22.8]}
15... Na5 {[%clk 0:01:25.4]} 16. Nxa5 {[%clk 0:02:09.1]} 16... Qxa5 {[%clk
0:01:25.6]} 17. e5 {[%clk 0:02:05.5]} 17... Bxf3 {[%clk 0:01:07.9]} 18. Rxf3
{[%clk 0:02:05.3]} 18... Nd7 {[%clk 0:00:59.1]} 19. Bd4 {[%clk 0:00:43.8]} 19...
d5 {[%clk 0:00:43.8]} 20. f5 {[%clk 0:00:42.4]} 20... Bf8 {[%clk 0:00:38.6]} 21.
Rdf1 {[%clk 0:00:32.9]} 21... b4 {[%clk 0:00:35.8]} 22. axb4 {[%clk 0:00:15.6]}
22... Qxb4 {[%clk 0:00:35.9]} 23. Ne2 {[%clk 0:00:10.9]} 23... Rxc2 {[%clk
0:00:32]} 24. f6 {[%clk 0:00:11.3]} 24... g6 {[%clk 0:00:30.7]} 25. Qf2 {[%clk
0:00:07.9]} 25... Rxe2 {[%clk 0:00:29.5]} 26. Qxe2 {[%clk 0:00:06.4]} 26...
Qxd4+ {[%clk 0:00:29.3]} 27. R3f2 {[%clk 0:00:06.4]} 27... Bc5 {[%clk
0:00:28.7]} 28. Kh1 {[%clk 0:00:05.5]} 28... Qxe5 {[%clk 0:00:22.9]} 29. Qd2
{[%clk 0:00:05.9]} 29... Qe3 {[%clk 0:00:15.8]} 30. Qc2 {[%clk 0:00:04.7]} 30...
Rb8 {[%clk 0:00:12.1]} 31. h3 {[%clk 0:00:04.9]} 31... Qb3 {[%clk 0:00:11.4]}
32. Qd2 {[%clk 0:00:04.5]} 32... Be3 {[%clk 0:00:10.2]} 33. Qe2 {[%clk 0:00:04]}
33... Bxf2 {[%clk 0:00:08.5]} 34. Qxf2 {[%clk 0:00:04.9]} 34... Qxb2 {[%clk
0:00:08.2]} 35. Qh4 {[%clk 0:00:05.4]} 35... h5 {[%clk 0:00:07]} 36. Qg5 {[%clk
0:00:04.8]} 36... Qb4 {[%clk 0:00:07]} 37. Qh6 {[%clk 0:00:04.4]} 37... Qf8
{[%clk 0:00:07.1]} 38. Qg5 {[%clk 0:00:04.3]} 38... Rb4 {[%clk 0:00:06.4]} 39.
Rf3 {[%clk 0:00:04.3]} 39... Re4 {[%clk 0:00:04.8]} 40. Rg3 {[%clk 0:00:04.5]}
40... Ne5 {[%clk 0:00:03.8]} 41. Rb3 {[%clk 0:00:03.1]} 41... Kh7 {[%clk
0:00:02.1]} 42. Kh2 {[%clk 0:00:03.4]} 42... Qh6 {[%clk 0:00:02.1]} 43. Qg3
{[%clk 0:00:04.3]} 43... Qf4 {[%clk 0:00:02]} 44. Rb7 {[%clk 0:00:05.2]} 44...
Qxg3+ {[%clk 0:00:02]} 45. Kxg3 {[%clk 0:00:06.1]} 45... Re3+ {[%clk 0:00:02.8]}
46. Kf4 {[%clk 0:00:06.4]} 46... Ra3 {[%clk 0:00:03.7]} 47. Kxe5 {[%clk
0:00:06.6]} 47... a5 {[%clk 0:00:04.1]} 48. Rxf7+ {[%clk 0:00:06.5]} 48... Kg8
{[%clk 0:00:03.7]} 49. Rg7+ {[%clk 0:00:07]} 49... Kf8 {[%clk 0:00:03.9]} 50.
Rxg6 {[%clk 0:00:07.4]} 50... Re3+ {[%clk 0:00:03.8]} 51. Kd6 {[%clk 0:00:07.6]}
51... d4 {[%clk 0:00:04]} 52. Rg5 {[%clk 0:00:06.5]} 52... d3 {[%clk 0:00:04.3]}
53. Rxh5 {[%clk 0:00:03.3]} 53... d2 {[%clk 0:00:04.5]} 54. Rh8+ {[%clk
0:00:03.5]} 54... Kf7 {[%clk 0:00:04.2]} 55. Rh7+ {[%clk 0:00:02.5]} 55... Kg6
{[%clk 0:00:04.2]} 56. Rg7+ {[%clk 0:00:02.1]} 56... Kh6 {[%clk 0:00:03.7]} 57.
Rg8 {[%clk 0:00:02.2]} 57... d1=Q+ {[%clk 0:00:02.9]} 58. Ke7 {[%clk 0:00:03.1]}
58... Qa4 {[%clk 0:00:02.3]} 59. f7 {[%clk 0:00:03]} 59... Qb4+ {[%clk
0:00:01.7]} 60. Ke8 {[%clk 0:00:03.3]} 60... Qb5+ {[%clk 0:00:01.7]} 61. Ke7
{[%clk 0:00:03.4]} 61... Qc5+ {[%clk 0:00:01.9]} 62. Ke8 {[%clk 0:00:04.3]}
62... Qc6+ {[%clk 0:00:01.8]} 63. Ke7 {[%clk 0:00:04.8]} 63... Qc7+ {[%clk
0:00:01.9]} 64. Ke8 {[%clk 0:00:05.2]} 64... Qc8+ {[%clk 0:00:02]} 65. Ke7
{[%clk 0:00:05.5]} 65... Qc7+ {[%clk 0:00:02.3]} 66. Ke8 {[%clk 0:00:06]} 66...
Qc6+ {[%clk 0:00:02.7]} 67. Ke7 {[%clk 0:00:06.4]} 67... Qc7+ {[%clk 0:00:02.9]}
1/2-1/2

[Event "*** Titled Tuesday Blitz"]
[Site "Chess.com"]
[Date "2020.05.19"]
[Round "10"]
[White "MateSchmate"]
[Black "MYMChessAcademy"]
[Result "0-1"]
[WhiteElo "2533"]
[BlackElo "2449"]
[TimeControl "180+1"]
[EndTime "13:58:33 PDT"]
[Termination "MYMChessAcademy won by checkmate"]

1. e4 {[%clk 0:03:00.9]} 1... c5 {[%clk 0:02:59.7]} 2. Nf3 {[%clk 0:03:00.9]}
2... d6 {[%clk 0:03:00.4]} 3. d4 {[%clk 0:03:00.9]} 3... cxd4 {[%clk 0:03:01.3]}
4. Nxd4 {[%clk 0:03:00.8]} 4... a6 {[%clk 0:03:02.2]} 5. Nc3 {[%clk 0:03:01.2]}
5... e6 {[%clk 0:03:03.1]} 6. g3 {[%clk 0:02:59.8]} 6... b5 {[%clk 0:03:03.3]}
7. Bg2 {[%clk 0:02:59.4]} 7... Bb7 {[%clk 0:03:04.2]} 8. a3 {[%clk 0:02:58.8]}
8... Nd7 {[%clk 0:03:05.1]} 9. Be3 {[%clk 0:02:58.9]} 9... Ngf6 {[%clk
0:03:05.4]} 10. O-O {[%clk 0:02:58.1]} 10... Nc5 {[%clk 0:03:05.5]} 11. f3
{[%clk 0:02:54.5]} 11... d5 {[%clk 0:03:05.9]} 12. e5 {[%clk 0:02:53.3]} 12...
Nfd7 {[%clk 0:03:05.2]} 13. f4 {[%clk 0:02:53.1]} 13... Be7 {[%clk 0:03:02.5]}
14. Qh5 {[%clk 0:02:44.9]} 14... g6 {[%clk 0:02:59.1]} 15. Qf3 {[%clk 0:02:40]}
15... h5 {[%clk 0:02:58.3]} 16. h3 {[%clk 0:02:38.4]} 16... Ne4 {[%clk
0:02:49.5]} 17. Nxe4 {[%clk 0:02:36.5]} 17... dxe4 {[%clk 0:02:50.4]} 18. Qf2
{[%clk 0:02:35]} 18... Qc7 {[%clk 0:02:48]} 19. Rad1 {[%clk 0:02:31]} 19... Nb6
{[%clk 0:02:42.6]} 20. Nxe6 {[%clk 0:02:22.7]} 20... fxe6 {[%clk 0:02:30.9]} 21.
Bxb6 {[%clk 0:02:17.5]} 21... Qc6 {[%clk 0:02:30.9]} 22. Be3 {[%clk 0:02:14.7]}
22... Rc8 {[%clk 0:02:21.4]} 23. c3 {[%clk 0:02:14.3]} 23... Qc4 {[%clk
0:02:16.7]} 24. Rd4 {[%clk 0:02:08.1]} 24... Qb3 {[%clk 0:02:03.8]} 25. Bxe4
{[%clk 0:02:05.6]} 25... Bxe4 {[%clk 0:01:59.5]} 26. Rxe4 {[%clk 0:02:06.5]}
26... O-O {[%clk 0:01:48.8]} 27. g4 {[%clk 0:02:06.2]} 27... hxg4 {[%clk
0:01:22.2]} 28. hxg4 {[%clk 0:02:05.7]} 28... Kg7 {[%clk 0:01:23.1]} 29. Rd4
{[%clk 0:02:02.5]} 29... Rcd8 {[%clk 0:01:15.6]} 30. Rxd8 {[%clk 0:01:52.4]}
30... Bxd8 {[%clk 0:01:10.1]} 31. Bc5 {[%clk 0:01:45.8]} 31... Rh8 {[%clk
0:01:08.2]} 32. f5 {[%clk 0:01:43.7]} 32... Qd5 {[%clk 0:01:00]} 33. Qf3 {[%clk
0:01:02.2]} 33... Qxc5+ {[%clk 0:00:59.7]} 34. Kg2 {[%clk 0:01:02.7]} 34... Qxe5
{[%clk 0:00:44.8]} 35. f6+ {[%clk 0:00:44.3]} 35... Kf8 {[%clk 0:00:27.9]} 36.
Qf4 {[%clk 0:00:40.7]} 36... Bc7 {[%clk 0:00:14.7]} 37. Qxe5 {[%clk 0:00:29.6]}
37... Bxe5 {[%clk 0:00:15.6]} 38. Re1 {[%clk 0:00:30.2]} 38... Rh2+ {[%clk
0:00:11.9]} 39. Kf3 {[%clk 0:00:30.7]} 39... Bxf6 {[%clk 0:00:12.2]} 40. Rxe6
{[%clk 0:00:30.8]} 40... Kf7 {[%clk 0:00:11.1]} 41. Rxa6 {[%clk 0:00:28.8]}
41... Rxb2 {[%clk 0:00:11.6]} 42. a4 {[%clk 0:00:27.3]} 42... bxa4 {[%clk
0:00:07]} 43. Ra7+ {[%clk 0:00:25]} 43... Be7 {[%clk 0:00:06.4]} 44. Rxa4 {[%clk
0:00:25.9]} 44... Rb3 {[%clk 0:00:06.6]} 45. Rc4 {[%clk 0:00:24.8]} 45... Bf6
{[%clk 0:00:05.9]} 46. Rc7+ {[%clk 0:00:24.6]} 46... Kg8 {[%clk 0:00:05.9]} 47.
Kf4 {[%clk 0:00:21.2]} 47... Rxc3 {[%clk 0:00:05.3]} 48. Rd7 {[%clk 0:00:20.6]}
48... Rc4+ {[%clk 0:00:02.5]} 49. Kf3 {[%clk 0:00:21.1]} 49... Bg7 {[%clk
0:00:02.9]} 50. Rb7 {[%clk 0:00:21.5]} 50... Kh7 {[%clk 0:00:03.1]} 51. Rb5
{[%clk 0:00:20.8]} 51... Kh6 {[%clk 0:00:03.4]} 52. Ra5 {[%clk 0:00:20.5]} 52...
Bf6 {[%clk 0:00:03.3]} 53. Rb5 {[%clk 0:00:20]} 53... Rc3+ {[%clk 0:00:03.5]}
54. Ke4 {[%clk 0:00:19.5]} 54... Rc4+ {[%clk 0:00:03.7]} 55. Kf3 {[%clk
0:00:19.8]} 55... Bg5 {[%clk 0:00:03.8]} 56. Rb8 {[%clk 0:00:18.5]} 56... Rf4+
{[%clk 0:00:03.7]} 57. Kg3 {[%clk 0:00:19]} 57... Rc4 {[%clk 0:00:03.2]} 58.
Rh8+ {[%clk 0:00:18.8]} 58... Kg7 {[%clk 0:00:03.5]} 59. Ra8 {[%clk 0:00:19.6]}
59... Rc3+ {[%clk 0:00:03.9]} 60. Kg2 {[%clk 0:00:20.1]} 60... Bf4 {[%clk
0:00:04.1]} 61. Ra7+ {[%clk 0:00:19.9]} 61... Kh6 {[%clk 0:00:04.3]} 62. Ra5
{[%clk 0:00:20.3]} 62... Re3 {[%clk 0:00:03.5]} 63. Kf2 {[%clk 0:00:20.3]} 63...
Re5 {[%clk 0:00:03.8]} 64. Ra4 {[%clk 0:00:20.2]} 64... Kg5 {[%clk 0:00:04.2]}
65. Ra6 {[%clk 0:00:18]} 65... Rd5 {[%clk 0:00:03.2]} 66. Kf3 {[%clk 0:00:16.7]}
66... Rd3+ {[%clk 0:00:03.2]} 67. Ke2 {[%clk 0:00:16.9]} 67... Rd6 {[%clk
0:00:03.4]} 68. Ra5+ {[%clk 0:00:15.1]} 68... Kxg4 {[%clk 0:00:03.5]} 69. Ra4
{[%clk 0:00:15.9]} 69... Rd2+ {[%clk 0:00:03.4]} 70. Kf1 {[%clk 0:00:16.4]}
70... g5 {[%clk 0:00:03.7]} 71. Ra3 {[%clk 0:00:16.4]} 71... Rd4 {[%clk
0:00:03]} 72. Kg2 {[%clk 0:00:16.1]} 72... Rd2+ {[%clk 0:00:03.2]} 73. Kf1
{[%clk 0:00:16.1]} 73... Bg3 {[%clk 0:00:02]} 74. Rb3 {[%clk 0:00:15.5]} 74...
Rf2+ {[%clk 0:00:02.2]} 75. Kg1 {[%clk 0:00:15.6]} 75... Kh3 {[%clk 0:00:02.3]}
76. Rb1 {[%clk 0:00:14.9]} 76... g4 {[%clk 0:00:02.4]} 77. Rb7 {[%clk
0:00:11.5]} 77... Re2 {[%clk 0:00:02.1]} 78. Rh7+ {[%clk 0:00:11]} 78... Bh4
{[%clk 0:00:02.5]} 79. Rf7 {[%clk 0:00:07.2]} 79... Re1+ {[%clk 0:00:02.7]} 80.
Rf1 {[%clk 0:00:08.1]} 80... Rxf1+ {[%clk 0:00:03.4]} 81. Kxf1 {[%clk 0:00:09]}
81... Kh2 {[%clk 0:00:04]} 82. Ke2 {[%clk 0:00:09.3]} 82... g3 {[%clk
0:00:04.9]} 83. Kf3 {[%clk 0:00:10.2]} 83... g2 {[%clk 0:00:05.8]} 84. Kg4
{[%clk 0:00:11.1]} 84... g1=Q+ {[%clk 0:00:06.7]} 85. Kh5 {[%clk 0:00:12]} 85...
Qg3 {[%clk 0:00:07.2]} 86. Kh6 {[%clk 0:00:12.2]} 86... Qg5+ {[%clk 0:00:07.6]}
87. Kh7 {[%clk 0:00:12.3]} 87... Bg3 {[%clk 0:00:07.8]} 88. Kh8 {[%clk
0:00:13.2]} 88... Be5+ {[%clk 0:00:07.9]} 89. Kh7 {[%clk 0:00:14.1]} 89... Qg7#
{[%clk 0:00:08.2]} 0-1

[Event "*** Titled Tuesday Blitz"]
[Site "Chess.com"]
[Date "2020.05.19"]
[Round "10"]
[White "robertofabregas"]
[Black "pedro_nascimento85"]
[Result "0-1"]
[WhiteElo "2088"]
[BlackElo "1750"]
[TimeControl "180+1"]
[EndTime "13:58:33 PDT"]
[Termination "pedro_nascimento85 won by checkmate"]

1. c4 {[%clk 0:03:00.9]} 1... e6 {[%clk 0:03:00]} 2. Nc3 {[%clk 0:02:59.4]} 2...
d6 {[%clk 0:03:00.2]} 3. g3 {[%clk 0:02:59.3]} 3... Nf6 {[%clk 0:03:00.1]} 4.
Bg2 {[%clk 0:02:59.7]} 4... Be7 {[%clk 0:02:59.2]} 5. Nf3 {[%clk 0:02:58.2]}
5... O-O {[%clk 0:02:57.3]} 6. O-O {[%clk 0:02:58.6]} 6... d5 {[%clk 0:02:57.3]}
7. d4 {[%clk 0:02:54.7]} 7... c6 {[%clk 0:02:56.6]} 8. Re1 {[%clk 0:02:53.3]}
8... Nbd7 {[%clk 0:02:53.3]} 9. a4 {[%clk 0:02:48]} 9... a5 {[%clk 0:02:41.2]}
10. e4 {[%clk 0:02:43.1]} 10... dxe4 {[%clk 0:02:38.6]} 11. Nxe4 {[%clk
0:02:44]} 11... Nxe4 {[%clk 0:02:38.9]} 12. Rxe4 {[%clk 0:02:44.4]} 12... Nf6
{[%clk 0:02:39.3]} 13. Re1 {[%clk 0:02:35.1]} 13... Bb4 {[%clk 0:02:38.1]} 14.
Bd2 {[%clk 0:02:22.1]} 14... c5 {[%clk 0:02:20.3]} 15. Bxb4 {[%clk 0:02:21.3]}
15... cxb4 {[%clk 0:02:14.3]} 16. b3 {[%clk 0:02:12.8]} 16... Qc7 {[%clk
0:02:12.2]} 17. Rc1 {[%clk 0:02:01.8]} 17... Rd8 {[%clk 0:02:11]} 18. Qe2 {[%clk
0:01:50.8]} 18... Bd7 {[%clk 0:02:07.6]} 19. Ne5 {[%clk 0:01:45.9]} 19... Be8
{[%clk 0:02:00]} 20. Red1 {[%clk 0:01:28.3]} 20... Ra6 {[%clk 0:01:57.2]} 21. c5
{[%clk 0:01:19.3]} 21... Nd5 {[%clk 0:01:49.1]} 22. Bxd5 {[%clk 0:01:05.9]}
22... Rxd5 {[%clk 0:01:45.6]} 23. Nc4 {[%clk 0:01:06.2]} 23... Qd8 {[%clk
0:01:33]} 24. Nd6 {[%clk 0:00:38]} 24... Bc6 {[%clk 0:01:17.6]} 25. f4 {[%clk
0:00:20.2]} 25... Qf6 {[%clk 0:01:07.7]} 26. Rd2 {[%clk 0:00:17.2]} 26... Rxd4
{[%clk 0:01:04.5]} 27. Rdd1 {[%clk 0:00:14.3]} 27... h6 {[%clk 0:01:02.7]} 28.
Qc2 {[%clk 0:00:10.1]} 28... Ra8 {[%clk 0:00:44.1]} 29. Rd3 {[%clk 0:00:10.1]}
29... Rxd3 {[%clk 0:00:43.3]} 30. Qxd3 {[%clk 0:00:09.5]} 30... Rd8 {[%clk
0:00:39.1]} 31. Rd1 {[%clk 0:00:09.9]} 31... Qb2 {[%clk 0:00:34.5]} 32. Rd2
{[%clk 0:00:07.8]} 32... Qa1+ {[%clk 0:00:33.1]} 33. Kf2 {[%clk 0:00:08.2]}
33... Qf6 {[%clk 0:00:32.1]} 34. Qe3 {[%clk 0:00:07.5]} 34... Rd7 {[%clk
0:00:20.5]} 35. h3 {[%clk 0:00:07.8]} 35... Qa1 {[%clk 0:00:19.4]} 36. g4 {[%clk
0:00:04.3]} 36... Qh1 {[%clk 0:00:18]} 37. Kg3 {[%clk 0:00:04.7]} 37... Qf1
{[%clk 0:00:14.5]} 38. Rf2 {[%clk 0:00:04.6]} 38... Qg1+ {[%clk 0:00:13.7]} 39.
Kh4 {[%clk 0:00:04.5]} 39... Bd5 {[%clk 0:00:08.4]} 40. Rd2 {[%clk 0:00:04.1]}
40... Qc1 {[%clk 0:00:07.3]} 41. Rxd5 {[%clk 0:00:04.1]} 41... Qxe3 {[%clk
0:00:06.2]} 42. Re5 {[%clk 0:00:04.2]} 42... Qf3 {[%clk 0:00:05.9]} 43. f5
{[%clk 0:00:03.4]} 43... Qf2+ {[%clk 0:00:06.2]} 44. Kh5 {[%clk 0:00:03.3]}
44... g6+ {[%clk 0:00:06.6]} 45. fxg6 {[%clk 0:00:03.9]} 45... fxg6+ {[%clk
0:00:07.1]} 46. Kxh6 {[%clk 0:00:04.5]} 46... Qf4+ {[%clk 0:00:06.5]} 47. Kxg6
{[%clk 0:00:05.4]} 47... Qxe5 {[%clk 0:00:06.4]} 48. Kh6 {[%clk 0:00:05.6]}
48... Qxc5 {[%clk 0:00:06.1]} 49. g5 {[%clk 0:00:06.5]} 49... Qc3 {[%clk
0:00:06.1]} 50. g6 {[%clk 0:00:07.4]} 50... Qd2+ {[%clk 0:00:06.4]} 51. Kh5
{[%clk 0:00:07.4]} 51... Qe2+ {[%clk 0:00:06.1]} 52. Kh6 {[%clk 0:00:07.8]}
52... Qe3+ {[%clk 0:00:05.6]} 53. Kh5 {[%clk 0:00:08.3]} 53... Qf4 {[%clk
0:00:05.3]} 54. h4 {[%clk 0:00:09.2]} 54... Qxd6 {[%clk 0:00:05.1]} 55. Kh6
{[%clk 0:00:10.1]} 55... Rg7 {[%clk 0:00:05.4]} 56. h5 {[%clk 0:00:11]} 56... e5
{[%clk 0:00:06.1]} 57. Kg5 {[%clk 0:00:11.2]} 57... e4 {[%clk 0:00:06.1]} 58.
Kh6 {[%clk 0:00:12.1]} 58... e3 {[%clk 0:00:06.3]} 59. Kg5 {[%clk 0:00:13]}
59... Qe6 {[%clk 0:00:05.9]} 60. Kh6 {[%clk 0:00:13.9]} 60... Qxb3 {[%clk
0:00:05.3]} 61. Kg5 {[%clk 0:00:14.8]} 61... e2 {[%clk 0:00:05.5]} 62. Kh6
{[%clk 0:00:15.7]} 62... Kh8 {[%clk 0:00:05.3]} 63. Kg5 {[%clk 0:00:16.6]} 63...
Qe3+ {[%clk 0:00:04.9]} 64. Kf6 {[%clk 0:00:16.7]} 64... Qh6 {[%clk 0:00:04.8]}
65. Kf5 {[%clk 0:00:16.2]} 65... Qxh5+ {[%clk 0:00:05]} 66. Kf6 {[%clk
0:00:17.1]} 66... Qh6 {[%clk 0:00:04.8]} 67. Kf5 {[%clk 0:00:17.5]} 67... Qxg6+
{[%clk 0:00:05.3]} 68. Kf4 {[%clk 0:00:18.4]} 68... Qc2 {[%clk 0:00:04.7]} 69.
Kf3 {[%clk 0:00:18]} 69... Qxa4 {[%clk 0:00:05.1]} 70. Kf4 {[%clk 0:00:18.2]}
70... Qe8 {[%clk 0:00:05.2]} 71. Kf3 {[%clk 0:00:19.1]} 71... Rf7+ {[%clk
0:00:05.6]} 72. Kg2 {[%clk 0:00:19.5]} 72... Qg8+ {[%clk 0:00:06.3]} 73. Kh3
{[%clk 0:00:19.9]} 73... Rh7# {[%clk 0:00:07.2]} 0-1

[Event "*** Titled Tuesday Blitz"]
[Site "Chess.com"]
[Date "2020.05.19"]
[Round "10"]
[White "ChessQueen"]
[Black "hansen"]
[Result "1/2-1/2"]
[WhiteElo "2623"]
[BlackElo "2925"]
[TimeControl "180+1"]
[EndTime "13:58:34 PDT"]
[Termination "Game drawn by agreement"]

1. e4 {[%clk 0:03:00.9]} 1... e5 {[%clk 0:02:01.5]} 2. Nf3 {[%clk 0:03:00.2]}
2... Nc6 {[%clk 0:01:59.4]} 3. Bb5 {[%clk 0:02:59.7]} 3... a6 {[%clk 0:01:59.2]}
4. Ba4 {[%clk 0:02:59.5]} 4... Nf6 {[%clk 0:01:59.5]} 5. d4 {[%clk 0:02:59.7]}
5... exd4 {[%clk 0:01:55.4]} 6. O-O {[%clk 0:02:59.3]} 6... Be7 {[%clk
0:01:55.1]} 7. e5 {[%clk 0:02:59.6]} 7... Ne4 {[%clk 0:01:54.4]} 8. Nxd4 {[%clk
0:02:56.2]} 8... Nxd4 {[%clk 0:01:49.5]} 9. Qxd4 {[%clk 0:02:56]} 9... Nc5
{[%clk 0:01:50.2]} 10. Bb3 {[%clk 0:02:50.4]} 10... Nxb3 {[%clk 0:01:48.8]} 11.
axb3 {[%clk 0:02:45.1]} 11... O-O {[%clk 0:01:47.9]} 12. Bf4 {[%clk 0:02:45]}
12... f6 {[%clk 0:01:27.2]} 13. Nc3 {[%clk 0:02:33.6]} 13... fxe5 {[%clk
0:01:25.4]} 14. Bxe5 {[%clk 0:02:33.9]} 14... Rf7 {[%clk 0:01:25.6]} 15. Nd5
{[%clk 0:02:17.2]} 15... d6 {[%clk 0:01:22.9]} 16. Nxe7+ {[%clk 0:02:15.1]}
16... Qxe7 {[%clk 0:01:15.3]} 17. Bg3 {[%clk 0:02:14.9]} 17... Bf5 {[%clk
0:01:13.4]} 18. Rfe1 {[%clk 0:02:08.8]} 18... Qf6 {[%clk 0:01:10.6]} 19. Qxf6
{[%clk 0:02:07.1]} 19... Rxf6 {[%clk 0:01:09.7]} 20. c3 {[%clk 0:02:05.9]} 20...
Rf7 {[%clk 0:01:01.9]} 21. b4 {[%clk 0:02:05.1]} 21... Raf8 {[%clk 0:00:59]} 22.
Re3 {[%clk 0:01:59.4]} 22... g5 {[%clk 0:00:58.1]} 23. h4 {[%clk 0:01:56.9]}
23... h6 {[%clk 0:00:56.4]} 24. Rae1 {[%clk 0:01:55.6]} 24... Kg7 {[%clk
0:00:56.6]} 25. Re7 {[%clk 0:01:45]} 25... Kf6 {[%clk 0:00:56.5]} 26. Rxf7+
{[%clk 0:01:41.1]} 26... Kxf7 {[%clk 0:00:56.1]} 27. f3 {[%clk 0:01:40.7]} 27...
Ra8 {[%clk 0:00:49.3]} 28. hxg5 {[%clk 0:01:38.9]} 28... hxg5 {[%clk 0:00:49.3]}
29. Kf2 {[%clk 0:01:39.4]} 29... a5 {[%clk 0:00:48.4]} 30. Ra1 {[%clk
0:01:35.1]} 30... a4 {[%clk 0:00:48.7]} 31. Ke3 {[%clk 0:01:33.2]} 31... b5
{[%clk 0:00:41.1]} 32. Kd4 {[%clk 0:01:27.8]} 32... Be6 {[%clk 0:00:34.3]} 33.
Rh1 {[%clk 0:01:25.9]} 33... Kg6 {[%clk 0:00:34.3]} 34. Re1 {[%clk 0:01:24.8]}
34... Re8 {[%clk 0:00:33.1]} 35. Re4 {[%clk 0:01:15.4]} 35... Kf6 {[%clk
0:00:30.4]} 36. Bf2 {[%clk 0:01:13.2]} 36... Ra8 {[%clk 0:00:27.3]} 37. f4
{[%clk 0:01:00.1]} 37... gxf4 {[%clk 0:00:23.7]} 38. Rxf4+ {[%clk 0:01:00.4]}
38... Ke7 {[%clk 0:00:23.7]} 39. Bh4+ {[%clk 0:01:00.2]} 39... Kd7 {[%clk
0:00:24]} 40. g4 {[%clk 0:00:55.2]} 40... a3 {[%clk 0:00:23.5]} 41. bxa3 {[%clk
0:00:55.5]} 41... Rxa3 {[%clk 0:00:24.4]} 42. g5 {[%clk 0:00:55.7]} 42... Ra1
{[%clk 0:00:23.8]} 43. Rf3 {[%clk 0:00:49]} 43... Rg1 {[%clk 0:00:14.1]} 44. Bg3
{[%clk 0:00:48]} 44... Bg4 {[%clk 0:00:12.7]} 45. Rd3 {[%clk 0:00:45.7]} 45...
Bf5 {[%clk 0:00:08.3]} 46. Rf3 {[%clk 0:00:44.8]} 46... Ke6 {[%clk 0:00:08.5]}
47. Bf4 {[%clk 0:00:39]} 47... Rd1+ {[%clk 0:00:04.5]} 48. Ke3 {[%clk
0:00:39.2]} 48... Re1+ {[%clk 0:00:03.5]} 49. Kd2 {[%clk 0:00:38.3]} 49... Rb1
{[%clk 0:00:04]} 50. Rg3 {[%clk 0:00:36]} 50... Bg6 {[%clk 0:00:03.8]} 51. Be3
{[%clk 0:00:34.9]} 51... Rb2+ {[%clk 0:00:03.9]} 52. Ke1 {[%clk 0:00:32.6]}
52... Rc2 {[%clk 0:00:03.4]} 53. Bd2 {[%clk 0:00:32.5]} 53... Kd5 {[%clk
0:00:03.2]} 54. Rg4 {[%clk 0:00:32.3]} 54... Ra2 {[%clk 0:00:02.8]} 55. Rf4
{[%clk 0:00:29.8]} 55... Ke5 {[%clk 0:00:02.6]} 56. Rf6 {[%clk 0:00:29.8]} 56...
Bd3 {[%clk 0:00:02.7]} 57. Rf3 {[%clk 0:00:27]} 57... Bc4 {[%clk 0:00:02]} 58.
Rg3 {[%clk 0:00:26.2]} 58... Kf5 {[%clk 0:00:02.2]} 59. g6 {[%clk 0:00:25.9]}
59... Ra1+ {[%clk 0:00:02.7]} 60. Kf2 {[%clk 0:00:25.9]} 60... Rf1+ {[%clk
0:00:03.4]} 61. Ke3 {[%clk 0:00:24.8]} 61... Rf4 {[%clk 0:00:03.3]} 62. g7
{[%clk 0:00:23.6]} 62... Re4+ {[%clk 0:00:03.8]} 63. Kf3 {[%clk 0:00:22.8]}
63... Re8 {[%clk 0:00:04.3]} 64. Be3 {[%clk 0:00:21.5]} 64... Kf6 {[%clk
0:00:04.3]} 65. Bd4+ {[%clk 0:00:21.5]} 65... Kf7 {[%clk 0:00:05.1]} 66. Rg5
{[%clk 0:00:21]} 66... Rg8 {[%clk 0:00:05.2]} 67. Rf5+ {[%clk 0:00:20.5]} 67...
Ke7 {[%clk 0:00:05.1]} 68. Rf4 {[%clk 0:00:20.9]} 68... Kd7 {[%clk 0:00:05.4]}
69. Rh4 {[%clk 0:00:19.7]} 69... Ke7 {[%clk 0:00:05.6]} 70. Kf4 {[%clk 0:00:20]}
70... Kf7 {[%clk 0:00:05.3]} 71. Kg5 {[%clk 0:00:20.5]} 71... Re8 {[%clk
0:00:05.5]} 72. Rf4+ {[%clk 0:00:20.2]} 72... Kg8 {[%clk 0:00:05.4]} 73. Rh4
{[%clk 0:00:19.8]} 73... Kf7 {[%clk 0:00:05.4]} 74. Rh8 {[%clk 0:00:18.5]} 74...
Rg8 {[%clk 0:00:05.7]} 75. Kf5 {[%clk 0:00:18.5]} 75... Bd3+ {[%clk 0:00:05.6]}
76. Kf4 {[%clk 0:00:18.4]} 76... c5 {[%clk 0:00:05.8]} 77. bxc5 {[%clk 0:00:18]}
77... dxc5 {[%clk 0:00:06.7]} 78. Be5 {[%clk 0:00:13.6]} 78... b4 {[%clk
0:00:06.4]} 79. cxb4 {[%clk 0:00:13.8]} 79... cxb4 {[%clk 0:00:07.3]} 80. Rxg8
{[%clk 0:00:13.4]} 80... Kxg8 {[%clk 0:00:07.4]} 81. Ke3 {[%clk 0:00:13.9]}
81... Bg6 {[%clk 0:00:07.4]} 82. Kd2 {[%clk 0:00:14.4]} 82... b3 {[%clk
0:00:06.1]} 1/2-1/2